fUSD/lending_fUSD_20240719
["ID","MTS","AMOUNT","RATE_DAILY","PERIOD"]
[332674779,1721421031767,-58239.63332858,0.00013378,2]
[332674781,1721421031777,-1200.0,0.000135,4]
[332674783,1721421031787,-2400.0,0.000136,4]
[332674785,1721421031797,-531.36487114,0.00013698,2]
[332674787,1721421031807,-360.25,0.00013699,2]
[332674789,1721421031818,-1334.85,0.00013699,5]
[332674791,1721421031829,-530.93,0.00013699,2]
[332674793,1721421031839,-250.0,0.00013699,2]
[332674795,1721421031849,-3600.0,0.000137,5]
[332674797,1721421031859,-22073.24504756,0.0001371,2]
[332674799,1721421031871,-455.45,0.00013721,2]
[332674801,1721421031881,-307.93771026,0.00013745,2]
[332674803,1721421031890,-155.0,0.00013789,2]
[332674805,1721421031899,-615.90782934,0.00013799,2]
[332674807,1721421031909,-4900.0,0.000138,5]
[332674809,1721421031919,-11493.0,0.000138,3]
[332674811,1721421031929,-407.14562287,0.00013859,2]
[332674813,1721421031939,-203.99567285,0.00013859,2]
[332674816,1721421031951,-500.0,0.00013887,2]
[332674818,1721421031963,-500.0,0.00013888,2]
[332674820,1721421031972,-500.0,0.00013888,2]
[332674822,1721421031985,-200.0,0.00013888,2]
[332674824,1721421031994,-155.0,0.00013889,2]
[332674826,1721421032004,-322.15409797,0.0001389,2]
[332674828,1721421032015,-273.7,0.0001389,3]
[332674830,1721421032025,-397.03225475,0.00013896,2]
[332674832,1721421032035,-155.0,0.00013896,2]
[332674834,1721421032044,-254.64693586,0.00013899,2]
[332674836,1721421032053,-173.97809351,0.000139,2]
[332674838,1721421032062,-6100.0,0.000139,5]
[332674840,1721421032072,-7189.0243705,0.000139,2]
[332674842,1721421032082,-190.43195591,0.000139,2]
[332674844,1721421032092,-409.97275602,0.000139,2]
[332674846,1721421032102,-397.03225475,0.00013905,2]
[332674848,1721421032111,-397.03225475,0.00013913,2]
[332674850,1721421032125,-397.03225475,0.00013922,2]
[332674852,1721421032135,-397.03225475,0.0001393,2]
[332674854,1721421032144,-214.25089341,0.0001393,2]
[332674856,1721421032153,-1000.0,0.00013978,2]
[332674858,1721421032164,-492.55741441,0.00013979,2]
[332674860,1721421032173,-1072.8576284,0.00013986,2]
[332674863,1721421032183,-9715.28242883,0.00013989,2]
[332674864,1721421032193,-207416.17954,0.0001399,3]
[332674866,1721421032202,-153.14,0.0001399,2]
[332674869,1721421032211,-740.03035469,0.00013999,2]
[332674870,1721421032221,-209.73197584,0.00013999,2]
[332674873,1721421032230,-5938.62489471,0.00013999,2]
[332674875,1721421032239,-238.37031184,0.00013999,2]
[332674877,1721421032250,-500.0,0.00013999,2]
[332674879,1721421032261,-279.72379122,0.00013999,2]
[332674881,1721421032270,-500.0,0.00013999,2]
[332674883,1721421032279,-300.0,0.00013999,2]
[332674885,1721421032288,-150.0,0.00013999,2]
[332674887,1721421032297,-134346.05437874,0.00014,2]
[332674889,1721421032310,-1699.67601483,0.00014,2]
[332674916,1721421037701,-777249.94800601,0.00014,2]
[332674917,1721421037712,-2000.0,0.00014,2]
[332674918,1721421037721,-200.0,0.00014,2]
[332674919,1721421037730,-334541.17960864,0.00014,2]
[332674920,1721421037742,-1213.90420096,0.00014,2]
[332674921,1721421037801,-1992.92348915,0.00014,2]
[332675085,1721421039529,-1720.39690758,0.00014,2]
[332675279,1721421041565,-4612.18455359,0.00014,2]
[332675286,1721421041623,-86534.15556423,0.00014,2]
[332675506,1721421045775,-233394.88272471,0.00014,2]
[332675507,1721421045849,-16755.0,0.00014,2]
[332675508,1721421045882,-10654.00770557,0.00014,2]
[332675531,1721421404079,14000.0,0.00011959,2]
[332675532,1721421404103,34533.02777382,0.00011959,2]
[332675534,1721421448534,601.3,0.00011173,2]
[332675537,1721421656395,616.53466973,0.00011173,2]
[332675538,1721421664535,290.83715981,0.00011173,2]
[332675539,1721421666502,212.38486091,0.00011173,2]
[332675540,1721421671442,344.14756295,0.00011173,2]
[332675544,1721422015384,571.23,0.00010645,2]
[332675564,1721422085315,1072.37048126,0.00011959,2]
[332675578,1721422207822,155.0,0.00011959,2]
[332675581,1721422214884,754.59697895,0.00011959,2]
[332675582,1721422222296,203.00895162,0.00011959,2]
[332675583,1721422227915,578.4847409,0.00011959,2]
[332675585,1721422231687,-254.52647688,0.00012391,2]
[332675586,1721422231697,-560.74229104,0.00012397,2]
[332675587,1721422231707,-757.55618856,0.00012397,2]
[332675588,1721422231743,-773.28704094,0.00012397,2]
[332675589,1721422231753,-300.0,0.00012589,2]
[332675590,1721422231762,-947.5075,0.0001259,2]
[332675591,1721422231771,-250.0,0.00012635,2]
[332675592,1721422231781,-1816.73918011,0.00012681,2]
[332675593,1721422231855,-267.23393513,0.00012681,2]
[332675594,1721422231867,-2783.83701633,0.00012681,2]
[332675595,1721422231879,-1650.28635442,0.00012681,2]
[332675609,1721422237773,-300.11965555,0.00012681,2]
[332675610,1721422237784,-1522.57839701,0.00012681,2]
[332675611,1721422237795,-516.31510695,0.00012681,2]
[332675612,1721422237809,-3597.56620416,0.00012681,2]
[332675613,1721422237821,-312.65415034,0.00012681,2]
[332675614,1721422237831,-1027.37,0.00012731,2]
[332675615,1721422237840,-500.0,0.00012731,2]
[332675616,1721422237851,-201.61,0.00012731,2]
[332675617,1721422237860,-1000.0,0.00012739,2]
[332675618,1721422237869,-2519.21,0.00012776,2]
[332675619,1721422237879,-571.23,0.00012909,2]
[332675620,1721422237888,-246.53949848,0.00013199,2]
[332675621,1721422237898,-155.0,0.00013297,2]
[332675622,1721422237907,-157.11482821,0.0001331,2]
[332675623,1721422237916,-1254.63523304,0.0001331,2]
[332675624,1721422237926,-1296.0883436,0.00013378,2]
[332675625,1721422237936,-1500.0,0.00013398,2]
[332675626,1721422237946,-207.49,0.0001345,2]
[332675627,1721422237955,-1445.16715792,0.00013479,2]
[332675628,1721422237965,-292.57856873,0.00013483,2]
[332675629,1721422237975,-164.02052985,0.00013483,2]
[332675630,1721422237984,-300.83134971,0.00013489,2]
[332675631,1721422237993,-300.0,0.000136,4]
[332675632,1721422238002,-953.42365127,0.00013698,2]
[332675633,1721422238011,-150.0,0.00013698,2]
[332675634,1721422238021,-584.1,0.00013699,2]
[332675635,1721422238030,-250.0,0.00013699,2]
[332675636,1721422238039,-200.0,0.00013699,2]
[332675637,1721422238049,-369.1,0.00013699,2]
[332675639,1721422238059,-1089.0,0.000137,3]
[332675641,1721422238068,-600.0,0.000137,5]
[332675643,1721422238077,-307.93771026,0.00013775,2]
[332675644,1721422238087,-12479.4699922,0.00013799,2]
[332675647,1721422238114,-12806.23747796,0.00013799,2]
[332675648,1721422238124,-159.32598087,0.00013799,2]
[332675650,1721422238133,-155.22310351,0.00013799,2]
[332675652,1721422238143,-900.0,0.000138,5]
[332675654,1721422238152,-420.0,0.00013812,2]
[332675656,1721422238161,-156.48505734,0.00013825,2]
[332675658,1721422238170,-155.54679538,0.00013825,2]
[332675660,1721422238180,-155.29460536,0.00013825,2]
[332675662,1721422238190,-155.29894982,0.00013825,2]
[332675664,1721422238200,-235.94587051,0.00013825,2]
[332675665,1721422238210,-171.44006163,0.00013859,2]
[332675666,1721422238219,-155.34702634,0.00013859,2]
[332675667,1721422238229,-242.77519857,0.00013859,2]
[332675668,1721422238239,-155.0,0.00013859,2]
[332675669,1721422238249,-163.93444029,0.00013859,2]
[332675670,1721422238258,-862.41258,0.0001386,2]
[332675671,1721422238267,-528.03546027,0.00013879,2]
[332675672,1721422238277,-155.17307083,0.00013879,2]
[332675673,1721422238287,-500.0,0.00013888,2]
[332675674,1721422238296,-200.0,0.00013888,2]
[332675675,1721422238306,-155.0,0.00013889,2]
[332675676,1721422238316,-155.33944343,0.00013889,2]
[332675677,1721422238325,-574.52401458,0.0001389,2]
[332675678,1721422238335,-6601.72192823,0.0001389,2]
[332675679,1721422238344,-15501.2049,0.0001389,2]
[332675680,1721422238353,-10659.5032,0.0001389,2]
[332675681,1721422238362,-12532.98069221,0.0001389,2]
[332675682,1721422238374,-2883.84825415,0.0001389,2]
[332675683,1721422238386,-1814.56851,0.0001389,2]
[332675684,1721422238401,-4414.93242347,0.0001389,2]
[332675685,1721422238412,-4488.32092168,0.0001389,2]
[332675686,1721422238436,-169.99139849,0.0001389,2]
[332675687,1721422238446,-188.96238511,0.0001389,2]
[332675693,1721422239749,-155.22715956,0.00013479,2]
[332675694,1721422239760,-919.32284044,0.0001389,2]
[332675695,1721422239773,-439.10667098,0.0001389,2]
[332675696,1721422239785,-600.0,0.0001389,2]
[332675697,1721422239796,-477.63680347,0.0001389,2]
[332675698,1721422239805,-24.99088022,0.0001389,2]
[332675699,1721422239817,-592.93999972,0.0001389,2]
[332675700,1721422240659,-1147.38654737,0.00013561,2]
[332675701,1721422240668,-3150.66472006,0.0001389,2]
[332675702,1721422240677,-347.08229106,0.00013896,2]
[332675703,1721422240686,-155.0,0.00013896,2]
[332675704,1721422240695,-211.67761017,0.00013896,2]
[332675705,1721422240704,-382.12258582,0.00013896,2]
[332675706,1721422240713,-155.0,0.00013899,2]
[332675707,1721422240723,-247.952683,0.000139,2]
[332675708,1721422240732,-161.2450526,0.000139,2]
[332675709,1721422240741,-173.97809351,0.000139,2]
[332675710,1721422240750,-1200.0,0.000139,5]
[332675711,1721422240759,-155.74816455,0.00013979,2]
[332675712,1721422240769,-218.46557785,0.00013979,2]
[332675713,1721422240778,-39717.9918269,0.0001399,2]
[332675714,1721422240787,-153.14,0.0001399,2]
[332675715,1721422240796,-2305.04596217,0.00013999,2]
[332675716,1721422240805,-14329.79288017,0.00014,2]
[332675717,1721422240817,-1107.68259837,0.00014,2]
[332675718,1721422240828,-1023.25,0.00014,2]
[332675725,1721422240997,-500.0,0.00014,2]
[332675729,1721422241020,-3020.81656,0.00014,2]
[332675756,1721422243024,-3019.62801191,0.00014,2]
[332675757,1721422243188,-2535.47,0.0001386,2]
[332675758,1721422243243,-640.83411005,0.0001386,2]
[332675772,1721422245799,-258.31960914,0.00013378,2]
[332675778,1721422245857,-1037.76873446,0.00013378,2]
[332675780,1721422245866,-1963.53126554,0.0001386,2]
[332675792,1721422246056,-7069.64315569,0.0001386,2]
[332675848,1721422585211,554.56,0.00011332,2]
[332675850,1721423108349,526.83,0.00010954,2]
[332675857,1721423244898,-225.0,0.0001268,2]
[332675858,1721423244922,-12248.17,0.00012681,2]
[332675865,1721423259280,-500.0,0.00012581,2]
[332675909,1721423432567,-254.68592052,0.00012359,2]
[332675910,1721423432624,-45.31407948,0.00012359,2]
[332675911,1721423432634,-3019.9737047,0.0001236,2]
[332675912,1721423432645,-3544.11203757,0.0001236,2]
[332675913,1721423432657,-764.60626949,0.0001236,2]
[332675914,1721423432687,-7562.13667786,0.0001236,2]
[332675948,1721423437988,25285.70747016,0.00011959,2]
[332675949,1721423438110,-150.0,0.00012539,2]
[332675950,1721423438120,-179.07252069,0.00012581,2]
[332675951,1721423438134,-41.94157934,0.00012581,2]
[332675952,1721423438143,-555.81342066,0.00012654,2]
[332675953,1721423438155,-444.18657934,0.00012654,2]
[332675954,1721423438164,-287.36,0.00012746,2]
[332675955,1721423438174,-250.0,0.00012872,2]
[332675956,1721423438183,-29.07239016,0.00012923,2]
[332675957,1721423438206,-136.91760984,0.00012923,2]
[332675958,1721423438215,-165.23,0.00012942,2]
[332675959,1721423438224,-1367.1,0.00012955,2]
[332675960,1721423438235,-167.57,0.00012984,2]
[332675961,1721423438244,-265.68910876,0.00013125,2]
[332675962,1721423438254,-346.93601851,0.00013165,2]
[332675963,1721423438263,-526.83,0.00013218,2]
[332675964,1721423438272,-2438.50504678,0.000133,3]
[332675965,1721423438284,-1605.98,0.000133,3]
[332675988,1721423440051,-462.7030002,0.000133,3]
[332675989,1721423440119,-6232.81195302,0.000133,3]
[332675990,1721423440128,-968.87,0.000134,2]
[332675991,1721423440138,-1560.2651688,0.000135,5]
[332675992,1721423440177,-9932.7348312,0.000135,5]
[332675993,1721423440188,-986.24814445,0.00013579,2]
[332675994,1721423440198,-276.21,0.00013625,2]
[332675995,1721423440208,-255.0,0.00013629,2]
[332675996,1721423440220,-159.18712243,0.0001367,2]
[332675997,1721423440230,-275.77673255,0.0001367,2]
[332675998,1721423440240,-299.26420137,0.00013698,2]
[332675999,1721423440252,-180.07823314,0.00013698,2]
[332676000,1721423440261,-250.0,0.00013699,2]
[332676001,1721423440273,-583.86,0.00013699,2]
[332676002,1721423440282,-334.16,0.00013699,2]
[332676003,1721423440291,-155.0,0.00013699,2]
[332676004,1721423440300,-347.08229106,0.00013699,2]
[332676005,1721423440311,-155.0,0.00013699,2]
[332676006,1721423440320,-155.0,0.00013699,2]
[332676007,1721423440329,-218.46557785,0.0001372,2]
[332676008,1721423440340,-254.58670637,0.0001372,2]
[332676009,1721423440351,-359.68896078,0.00013721,2]
[332676010,1721423440360,-310.0,0.00013789,2]
[332676011,1721423440370,-528.03546027,0.00013799,2]
[332676012,1721423440380,-528.03546027,0.00013825,2]
[332676013,1721423440390,-1073.51082,0.0001386,2]
[332676014,1721423440401,-500.0,0.00013888,2]
[332676015,1721423440412,-200.0,0.00013888,2]
[332676016,1721423440422,-14712.6501,0.0001389,2]
[332676017,1721423440433,-466.9961,0.0001389,2]
[332676018,1721423440443,-220.31,0.0001389,3]
[332676019,1721423440452,-167.84757332,0.00013899,2]
[332676020,1721423440462,-6568.60040783,0.00013899,2]
[332676021,1721423440471,-2380.7156,0.000139,2]
[332676022,1721423440481,-3338.812,0.000139,2]
[332676023,1721423440492,-160.98647634,0.000139,2]
[332676024,1721423440502,-461.36,0.000139,2]
[332676025,1721423440513,-165.6066,0.000139,2]
[332676026,1721423440524,-173.97809351,0.000139,2]
[332676027,1721423440534,-322.24176037,0.000139,2]
[332676028,1721423440544,-257148.330037,0.0001399,2]
[332676029,1721423440555,-1243.85046268,0.00013999,5]
[332676030,1721423440565,-1243.85046267,0.00013999,5]
[332676031,1721423440574,-300.0,0.00013999,2]
[332676032,1721423440584,-1159699.674884,0.00014,2]
[332676033,1721423440597,-593329.84603317,0.00014,2]
[332676034,1721423440610,-405564.45082396,0.00014,2]
[332676035,1721423440620,-200.0,0.00014,2]
[332676036,1721423440630,-1000.0,0.00014,2]
[332676037,1721423440639,-442.83381685,0.00014,2]
[332676038,1721423440650,-5070.0228878,0.00014046,2]
[332676039,1721423440659,-83615.4873079,0.00014046,2]
[332676040,1721423440668,-11391.8472236,0.00014056,2]
[332676041,1721423440679,-1000.0,0.00014235,2]
[332676042,1721423440688,-1067.0,0.00014251,2]
[332676043,1721423440699,-1000.0,0.00014313,2]
[332676044,1721423440709,-1000.0,0.00014313,2]
[332676045,1721423440719,-201.61,0.00014323,2]
[332676046,1721423440729,-583.86,0.00014384,2]
[332676047,1721423440738,-2243.29435297,0.00014496,2]
[332676048,1721423440747,-165.99,0.00014538,2]
[332676049,1721423440756,-193.69998713,0.00014579,2]
[332676050,1721423440766,-150.0,0.00014821,2]
[332676051,1721423440777,-150.0,0.00015,2]
[332676052,1721423440786,-583.86,0.00015068,2]
[332676053,1721423440796,-3675.55,0.00015249,2]
[332676054,1721423440807,-276.21,0.00015328,2]
[332676055,1721423440819,-526.83,0.00015482,2]
[332676056,1721423440830,-583.86,0.00015753,2]
[332676057,1721423440840,-1000.0,0.00015817,2]
[332676058,1721423440850,-201.61,0.00015914,2]
[332676059,1721423440859,-165.99,0.00016154,2]
[332676060,1721423440868,-6568.60040775,0.0001621,2]
[332676061,1721423440877,-1073.51082,0.0001636,2]
[332676062,1721423440887,-583.86,0.00016438,2]
[332676063,1721423440901,-1761.75637949,0.00016604,2]
[332676064,1721423440910,-167.8475733,0.00016733,2]
[332676065,1721423440919,-456.66126779,0.00016969,2]
[332676066,1721423440930,-253.259,0.00017,2]
[332676067,1721423440939,-200.0,0.00017,2]
[332676068,1721423440948,-276.21,0.00017032,2]
[332676069,1721423440958,-1000.0,0.00017399,2]
[332676070,1721423440968,-201.61,0.00017506,2]
[332676071,1721423440978,-526.83,0.00017745,2]
[332676072,1721423440987,-165.99,0.00017769,2]
[332676073,1721423440996,-500.0,0.00018,2]
[332676074,1721423441006,-371.26695724,0.00018,2]
[332676075,1721423441016,-160.98647633,0.00018062,2]
[332676076,1721423441025,-1627.0,0.000181,2]
[332676077,1721423441034,-450.0,0.000182,2]
[332676078,1721423441045,-6568.60040775,0.00018521,2]
[332676079,1721423441054,-276.21,0.00018735,2]
[332676080,1721423441064,-1073.51082,0.0001886,2]
[332676081,1721423441073,-1000.0,0.00018981,2]
[332676082,1721423441083,-250.0,0.00019,2]
[332676083,1721423441092,-201.61,0.00019097,2]
[332676084,1721423441101,-334.16,0.00019178,2]
[332676085,1721423441110,-165.99,0.00019384,2]
[332676086,1721423441119,-167.57,0.00019477,2]
[332676087,1721423441129,-167.8475733,0.00019566,2]
[332676088,1721423441138,-504.94138761,0.00019899,2]
[332676089,1721423441147,-500.0,0.0002,2]
[332676090,1721423441156,-674.165,0.0002,2]
[332676091,1721423441165,-526.83,0.00020009,2]
[332676092,1721423441175,-155.0,0.0002012,2]
[332676093,1721423441184,-155.0,0.0002012,2]
[332676094,1721423441193,-227.43774807,0.0002038,2]
[332676095,1721423441203,-276.21,0.00020438,2]
[332676096,1721423441212,-6568.60040775,0.00020833,2]
[332676097,1721423441221,-5813.19622102,0.000209,2]
[332676098,1721423441230,-370.7,0.00021,2]
[332676099,1721423441239,-300.0,0.00021,2]
[332676100,1721423441249,-1073.51082,0.0002136,2]
[332676101,1721423441258,-235.4,0.00021644,2]
[332676102,1721423441268,-154.36,0.00021644,2]
[332676103,1721423441277,-211.89,0.00021918,2]
[332676104,1721423441286,-2736.33740729,0.00022,2]
[332676105,1721423441295,-160.98647633,0.00022224,2]
[332676106,1721423441304,-526.83,0.00022273,2]
[332676107,1721423441314,-167.8475733,0.000224,2]
[332676108,1721423441323,-173.97809351,0.000224,2]
[332676109,1721423441332,-350.0,0.00023,2]
[332676110,1721423441342,-6568.60040775,0.00023144,2]
[332676111,1721423441352,-1073.51082,0.0002386,2]
[332676112,1721423441361,-526.83,0.00024537,2]
[332676113,1721423441371,-524.04,0.000247,2]
[332676114,1721423441380,-400.0,0.00025,2]
[332676116,1721423441389,-507.99,0.000252,2]
[332676117,1721423441398,-167.8475733,0.00025233,2]
[332676119,1721423441408,-6568.60040775,0.00025455,2]
[332676121,1721423441417,-166.66666668,0.000259,2]
[332676122,1721423441426,-166.66666666,0.000259,2]
[332676123,1721423441436,-10000.0,0.00025921,2]
[332676124,1721423441445,-5118.0,0.00026088,2]
[332676125,1721423441455,-1200.0,0.00026088,2]
[332676126,1721423441464,-1070.0,0.00026088,2]
[332676127,1721423441473,-185.24657996,0.0002616,2]
[332676128,1721423441483,-500.0,0.0002634,2]
[332676129,1721423441492,-1073.51082,0.0002636,2]
[332676130,1721423441502,-160.98647633,0.00026386,2]
[332676131,1721423441511,-2899.41,0.000264,7]
[332676132,1721423441520,-155.0,0.00026779,2]
[332676133,1721423441529,-161.33994766,0.00026788,2]
[332676134,1721423441540,-524.04,0.000268,2]
[332676135,1721423441549,-526.83,0.00026801,2]
[332676136,1721423441558,-306.06891297,0.00026967,2]
[332676137,1721423441567,-450.0,0.00027,2]
[332676138,1721423441577,-500.0,0.00027162,2]
[332676139,1721423441586,-325.35,0.00027397,10]
[332676140,1721423441595,-5813.19622102,0.0002766,2]
[332676141,1721423441604,-6568.60040775,0.00027766,2]
[332676142,1721423441615,-535.25788446,0.0002777,2]
[332676143,1721423441624,-153.62163206,0.00027871,2]
[332676144,1721423441634,-265.93014408,0.00027984,2]
[332676145,1721423441643,-304.97378037,0.00027989,2]
[332676146,1721423441652,-167.8475733,0.00028067,2]
[332676147,1721423441662,-153.62163206,0.00028126,2]
[332676148,1721423441672,-419.88,0.00028137,2]
[332676149,1721423441681,-960.77,0.00028137,2]
[332676150,1721423441691,-833.09,0.00028137,2]
[332676151,1721423441701,-419.88,0.00028137,2]
[332676152,1721423441711,-419.88,0.00028137,2]
[332676153,1721423441721,-833.09,0.00028137,2]
[332676154,1721423441731,-833.09,0.00028137,2]
[332676155,1721423441742,-419.88,0.00028137,2]
[332676156,1721423441752,-419.88,0.00028137,2]
[332676157,1721423441761,-833.09,0.00028137,2]
[332676158,1721423441769,-833.09,0.00028137,2]
[332676159,1721423441780,-700.03,0.00028137,2]
[332676160,1721423441790,-833.09,0.00028137,2]
[332676161,1721423441799,-833.09,0.00028137,2]
[332676162,1721423441809,-190.924,0.00028229,2]
[332676163,1721423441818,-191.725,0.00028229,2]
[332676164,1721423441827,-150.0,0.00028229,2]
[332676165,1721423441838,-361.0,0.00028229,2]
[332676166,1721423441848,-1662.0,0.00028229,2]
[332676167,1721423441857,-1829.0,0.00028229,2]
[332676168,1721423441866,-1253.0,0.00028229,2]
[332676169,1721423441876,-810.0,0.00028229,2]
[332676170,1721423441887,-450.647,0.00028229,2]
[332676171,1721423441899,-396.917,0.00028229,2]
[332676172,1721423441909,-2381.0,0.00028229,2]
[332676173,1721423441919,-549.0,0.00028229,2]
[332676174,1721423441929,-1991.0,0.00028229,2]
[332676175,1721423441940,-3273.0,0.00028229,2]
[332676176,1721423441951,-2899.41,0.000285,14]
[332676177,1721423441961,-153.62163208,0.0002871,2]
[332676178,1721423441974,-507.99,0.000288,2]
[332676179,1721423441983,-154.36,0.00028853,2]
[332676180,1721423441992,-14427.8796943,0.00029,2]
[332676181,1721423442001,-151.0,0.00029,2]
[332676182,1721423442010,-524.04,0.00029,2]
[332676183,1721423442020,-500.0,0.00029,2]
[332676184,1721423442029,-526.83,0.00029065,2]
[332676185,1721423442038,-2640.906,0.00029088,2]
[332676186,1721423442047,-154.41671676,0.00029301,2]
[332676187,1721423442056,-150.73897012,0.00029466,2]
[332676188,1721423442066,-2252.03477392,0.0003,3]
[332676189,1721423442077,-3000.0,0.0003,7]
[332676190,1721423442087,-151.0,0.0003,2]
[332676191,1721423442098,-6000.0,0.0003,2]
[332676192,1721423442107,-175.63048851,0.0003,2]
[332676193,1721423442264,-13214.57757784,0.0003,2]
[332676194,1721423442273,-153.935546,0.0003,7]
[332676195,1721423442283,-151.0,0.0003,7]
[332676196,1721423442293,-151.0,0.0003,7]
[332676197,1721423442302,-151.0,0.0003,7]
[332676198,1721423442313,-151.0,0.0003,7]
[332676199,1721423442322,-151.0,0.0003,7]
[332676200,1721423442334,-6568.60040775,0.00030078,15]
[332676201,1721423442344,-535.25788446,0.00030083,15]
[332676202,1721423442353,-151.0,0.00030162,7]
[332676203,1721423442362,-151.0,0.00030162,7]
[332676204,1721423442372,-151.0,0.00030162,7]
[332676205,1721423442381,-151.0,0.00030162,7]
[332676206,1721423442391,-185.8994514,0.00030162,7]
[332676207,1721423442402,-2899.41,0.000302,14]
[332676208,1721423442412,-151.0,0.000302,7]
[332676209,1721423442421,-185.24657995,0.0003029,2]
[332676210,1721423442431,-156.01357117,0.00030359,7]
[332676211,1721423442441,-160.98647633,0.00030548,2]
[332676212,1721423442450,-507.99,0.000308,2]
[332676213,1721423442460,-3181.8714112,0.00030881,3]
[332676214,1721423442471,-173.97809351,0.000309,2]
[332676215,1721423442480,-1173.50372169,0.000309,2]
[332676216,1721423442490,-167.8475733,0.000309,2]
[332676217,1721423442499,-300.0,0.00030978,10]
[332676218,1721423442509,-151.0,0.00030979,7]
[332676219,1721423442519,-230.733356,0.00030979,7]
[332676220,1721423442528,-151.0,0.00030979,7]
[332676221,1721423442538,-10931.4216113,0.00030979,2]
[332676222,1721423442549,-10470.9959989,0.00030979,2]
[332676223,1721423442559,-10010.5703866,0.00030979,2]
[332676224,1721423442569,-9550.1447742,0.00030979,2]
[332676225,1721423442579,-9089.7191619,0.00030979,2]
[332676226,1721423442590,-151.0,0.00030979,7]
[332676227,1721423442602,-151.0,0.00030979,7]
[332676228,1721423442611,-151.0,0.00030979,7]
[332676229,1721423442621,-151.0,0.00030979,7]
[332676230,1721423442632,-4865.1071838,0.00030979,2]
[332676231,1721423442644,-4660.1914799,0.00030979,2]
[332676232,1721423442654,-4455.275776,0.00030979,2]
[332676233,1721423442663,-4250.3600721,0.00030979,2]
[332676234,1721423442674,-4045.4443682,0.00030979,2]
[332676235,1721423442684,-80235.9904458,0.00030979,2]
[332676236,1721423442694,-76856.4935837,0.00030979,2]
[332676237,1721423442704,-41728.71827886,0.00030979,2]
[332676258,1721423443134,-155.10759368,0.0001367,2]
[332676259,1721423443145,-1107.45923632,0.00030979,2]
[332676260,1721423443165,-5196.37642543,0.00030979,2]
[332676263,1721423444257,-379.1506427,0.00014283,2]
[332676264,1721423444768,-251.81312797,0.0001367,2]
[332676265,1721423444778,-4380.31685247,0.0001386,2]
[332676266,1721423445256,-1500.04768187,0.0001386,2]
[332676267,1721423445268,-495.58079881,0.0001386,2]
[332676268,1721423445284,-3123.05466685,0.0001386,2]
[332676269,1721423445294,-113.40677171,0.00014283,2]
[332676270,1721423445303,-946.66950163,0.00014899,2]
[332676271,1721423445313,-155.0,0.00014988,2]
[332676272,1721423445322,-155.0,0.00014988,2]
[332676273,1721423445611,-7574.39879447,0.00025921,2]
[332676274,1721423445643,-46403.5240122,0.00026341,7]
[332676275,1721423445654,-25444.44278109,0.00030979,2]
[332676276,1721423445665,-26601.17793755,0.00030979,2]
[332676277,1721423445688,-251.96019814,0.00030979,2]
[332676279,1721423445700,-13040.6402259,0.00030979,2]
[332676281,1721423445715,-1950.0,0.00030979,2]
[332676283,1721423445726,-8754.77445779,0.00030979,2]
[332676284,1721423445738,-1449.45668,0.00030979,2]
[332676285,1721423445749,-1319.07941141,0.00030979,2]
[332676312,1721423446744,-3099.0,0.000135,5]
[332676314,1721423446754,-16730.41094881,0.00030979,2]
[332676315,1721423446764,-56337.48479942,0.00030979,2]
[332676319,1721423446844,-10380.51819808,0.00030979,2]
[332676320,1721423446853,-151.0,0.00030979,7]
[332676321,1721423446864,-151.0,0.00030979,7]
[332676322,1721423446873,-151.0,0.00030979,7]
[332676323,1721423446884,-263.966568,0.00030979,7]
[332676324,1721423446899,-154.544725,0.00030979,7]